bitfinex-derivatives/quotes_SOLF0:USTF0_20240905
["timestamp","ask_amount","ask_price","bid_price","bid_amount"]
[1725548071948,39.23,132.11,132.0,39.23]
[1725548072254,39.23,132.11,132.03,3.7869]
[1725548072451,39.23,132.11,132.0,43.07685893]
[1725548072755,3.7865,132.06,132.04,0.05633307]
[1725548073055,3.84326368,132.06,132.04,0.04988151]
[1725548073256,0.05676368,132.06,132.04,0.04988151]
[1725548073849,0.05676368,132.06,132.04,3.83678151]
[1725548074649,0.05676368,132.06,132.05,3.7866]
[1725548076248,0.05676368,132.06,132.05,6.6323]
[1725548076659,0.05676368,132.06,132.05,2.8457]
[1725548077060,5.6582,132.12,132.05,2.8457]
[1725548077247,3.7851,132.11,132.07,3.7858]
[1725548077446,5.6582,132.12,132.05,2.8457]
[1725548077653,5.6582,132.12,132.07,3.7858]
[1725548077853,2.7915,132.18,132.07,3.80093925]
[1725548078158,0.05376499,132.14,132.11,0.05764547]
[1725548079755,0.05376499,132.14,132.11,3.84244547]
[1725548079950,0.05376499,132.14,132.11,0.05764547]
[1725548080357,0.05376499,132.14,132.13,3.7843]
[1725548081956,0.05376499,132.14,132.13,43.0143]
[1725548082254,2.8428,132.23,132.09,2.6798]
[1725548082458,2.8428,132.23,132.14,39.23]
[1725548082756,2.8428,132.23,132.1,2.816]
[1725548082757,39.23,132.22,132.1,42.046]
[1725548082954,39.23,132.2,132.1,42.046]
[1725548083154,0.05696261,132.16,132.15,3.7836]
[1725548083359,0.05502902,132.17,132.14,0.05301474]
[1725548083759,0.05502902,132.17,132.16,3.7834]
[1725548084262,0.05502902,132.17,132.14,0.05301474]
[1725548084565,0.05502902,132.17,132.15,3.70004541]
[1725548084751,0.05502902,132.17,132.14,0.05301474]
[1725548085155,0.05502902,132.17,132.15,3.7835]
[1725548085354,0.05502902,132.17,132.14,0.05301474]
[1725548085355,0.05502902,132.17,132.14,39.28301474]
[1725548085859,0.05502902,132.17,132.14,0.05301474]
[1725548086561,0.05502902,132.17,132.16,3.7834]
[1725548086760,0.05502902,132.17,132.14,0.05301474]
[1725548087762,0.05502902,132.17,132.16,3.7834]
[1725548088262,0.05502902,132.17,132.15,3.7836]
[1725548088762,0.05502902,132.17,132.14,3.83701474]
[1725548089559,0.05502902,132.17,132.14,0.05301474]
[1725548091063,0.05502902,132.17,132.14,3.83701474]
[1725548091263,0.05502902,132.17,132.14,0.05301474]
[1725548093764,42.01552902,132.17,132.07,39.23]
[1725548093962,41.9605,132.17,132.07,41.8561]
[1725548094170,3.784,132.14,132.07,41.8561]
[1725548094772,0.0500014,132.12,132.11,3.7847]
[1725548094970,0.04935357,132.13,132.11,3.7847]
[1725548095275,0.04935357,132.13,132.11,3.7849]
[1725548095472,0.04935357,132.13,132.1,0.05447188]
[1725548095969,0.04935357,132.13,132.11,3.7847]
[1725548096168,0.04935357,132.13,132.1,0.05447188]
[1725548096469,0.04935357,132.13,132.12,3.7846]
[1725548097669,0.04935357,132.13,132.11,3.7848]
[1725548097865,0.04935357,132.13,132.1,0.05447188]
[1725548098368,0.04935357,132.13,132.12,3.7846]
[1725548098566,0.04935357,132.13,132.1,0.05447188]
[1725548099175,3.83375357,132.13,132.1,0.05447188]
[1725548099967,0.04935357,132.13,132.1,3.83947188]
[1725548100170,0.04935357,132.13,132.1,0.05447188]
[1725548100568,0.04935357,132.13,132.12,3.7846]
[1725548101668,0.04935357,132.13,132.1,0.05447188]
[1725548101669,0.04935357,132.13,132.11,3.7847]
[1725548102070,0.04935357,132.13,132.1,0.05447188]
[1725548102271,0.04935357,132.13,132.11,3.7849]
[1725548102473,0.04935357,132.13,132.1,0.05447188]
[1725548102866,0.04935357,132.13,132.12,3.7846]
[1725548103077,0.04935357,132.13,132.1,0.05447188]
[1725548104172,0.04935357,132.13,132.12,3.7846]
[1725548105071,3.84923378,132.13,132.1,0.05447188]
[1725548105464,3.7848,132.12,132.1,0.05447188]
[1725548105870,3.84923378,132.13,132.06,3.7805709]
[1725548106166,39.28,132.15,132.03,39.28]
[1725548106370,39.28,132.15,132.03,43.00378284]
[1725548106568,3.7848,132.12,132.09,3.7853]
[1725548106770,0.05787035,132.12,132.09,0.05520841]
[1725548107165,0.05787035,132.12,132.09,3.82631464]
[1725548107363,0.05787035,132.12,132.09,0.05520841]
[1725548107568,0.05787035,132.12,132.09,7.63811573]
[1725548107777,0.05787035,132.12,132.09,3.85281573]
[1725548108471,0.05787035,132.12,132.1,39.28]
[1725548108671,3.74763383,132.19,132.1,41.8922]
[1725548109069,39.28,132.23,132.13,3.7843]
[1725548109272,6.48734911,132.2,132.1,41.8922]
[1725548109469,2.7681,132.2,132.1,41.8922]
[1725548109674,0.04811613,132.16,132.14,0.05589177]
[1725548110466,5.5554,132.25,132.19,39.28]
[1725548110669,3.7816,132.23,132.16,39.28]
[1725548110876,5.5554,132.25,132.14,39.28]
[1725548111374,3.7818,132.22,132.17,3.7829]
[1725548111572,5.5554,132.25,132.17,3.83544016]
[1725548111772,0.05323115,132.21,132.17,3.783]
[1725548111975,0.05323115,132.21,132.18,0.05745496]
[1725548113972,0.05323115,132.21,132.18,2.88335496]
[1725548114182,0.05323115,132.21,132.18,42.16335496]
[1725548114377,0.05323115,132.21,132.2,3.7823]
[1725548115282,39.28,132.31,132.2,39.28]
[1725548115578,7.9152,132.32,132.23,39.28]
[1725548115579,11.78984064,132.32,132.23,39.28]
[1725548115876,11.78984064,132.32,132.27,3.7802]
[1725548116266,3.82816529,132.31,132.28,0.04986789]
[1725548116981,0.04886529,132.31,132.28,0.04986789]
[1725548117777,0.04886529,132.31,132.3,3.7794]
[1725548117968,5.485,132.38,132.29,39.28]
[1725548118573,5.485,132.38,132.31,39.28]
[1725548118775,3.7767,132.4,132.36,3.7777]
[1725548118980,3.68945789,132.42,132.33,41.9618]
[1725548119273,0.04980944,132.39,132.37,0.05342844]
[1725548119981,3.7771,132.38,132.37,0.05342844]
[1725548120276,0.04980944,132.39,132.37,0.05342844]
[1725548121275,3.7771,132.38,132.37,0.05342844]
[1725548121475,3.7771,132.38,132.29,39.28]
[1725548121476,5.6816,132.38,132.29,39.28]
[1725548121779,5.6816,132.38,132.33,3.7785]
[1725548121970,3.76908435,132.43,132.27,5.3084]
[1725548121971,35.493,132.42,132.32,32.66]
[1725548122170,35.493,132.42,132.33,3.7784]
[1725548122375,32.66,132.4,132.31,3.74980804]
[1725548122577,0.04922705,132.37,132.34,0.05486023]
[1725548122778,0.04922705,132.37,132.28,32.66]
[1725548122779,3.7783,132.34,132.3,3.7792]
[1725548122978,32.66,132.36,132.27,2.6818]
[1725548123174,32.66,132.38,132.28,32.66]
[1725548123780,0.04876397,132.34,132.32,3.8327231]
[1725548123973,0.05752979,132.34,132.32,32.71073761]
[1725548124379,0.05752979,132.34,132.32,36.48953761]
[1725548124582,0.05752979,132.34,132.32,0.05073761]
[1725548124881,3.83602979,132.34,132.32,0.05073761]
[1725548125082,0.05752979,132.34,132.32,0.05073761]
[1725548125480,3.83592979,132.34,132.32,0.05073761]
[1725548125681,0.05752979,132.34,132.32,0.05073761]
[1725548125984,0.05752979,132.34,132.33,3.7786]
[1725548126788,0.05752979,132.34,132.32,0.05073761]
[1725548127285,0.05752979,132.34,132.33,3.7786]
[1725548127488,0.05752979,132.34,132.32,0.05073761]
[1725548128377,3.7786,132.33,132.32,0.05073761]
[1725548128577,32.66,132.33,132.27,2.6818]
[1725548128781,3.779,132.32,132.28,3.7799]
[1725548128978,6.45404139,132.34,132.27,2.6818]
[1725548129379,2.6151,132.34,132.3,3.7794]
[1725548129680,0.04925967,132.33,132.31,0.05233105]
[1725548129983,0.04925967,132.33,132.31,3.83133105]
[1725548130189,0.04925967,132.33,132.31,0.05233105]
[1725548130376,0.04925967,132.33,132.32,3.7789]
[1725548130775,0.04925967,132.33,132.32,36.4389]
[1725548130983,3.7773,132.38,132.34,3.7781]
[1725548131180,3.7773,132.38,132.32,32.66]
[1725548131581,3.7776,132.37,132.34,3.7781]
[1725548131983,0.05073441,132.37,132.35,3.778]
[1725548132377,0.05073441,132.37,132.34,0.04801213]
[1725548132583,0.05073441,132.37,132.36,3.7777]
[1725548133083,2.6735,132.46,132.4,3.7765]
[1725548133084,32.66,132.45,132.4,3.7765]
[1725548133283,3.776,132.43,132.38,32.66]
[1725548133580,38.0269,132.46,132.38,3.777]
[1725548133789,3.7762,132.42,132.38,3.777]
[1725548133984,0.05567769,132.41,132.39,0.05444755]
[1725548134485,0.05567769,132.41,132.32,32.66]
[1725548134689,3.85383557,132.41,132.34,32.66]
[1725548134887,3.7767,132.4,132.34,32.66]
[1725548135087,3.72571453,132.4,132.32,35.3691]
[1725548135278,0.05419252,132.37,132.35,0.05419408]
[1725548135992,3.7785,132.34,132.28,32.66]
[1725548136286,2.6263,132.37,132.31,3.7789]
[1725548136489,2.6263,132.37,132.28,32.66]
[1725548136892,0.05467499,132.34,132.31,0.04878369]
[1725548137586,3.85043413,132.33,132.31,0.04878369]
[1725548137781,36.4170834,132.4,132.25,2.7134]
[1725548137782,32.66,132.32,132.25,2.7134]
[1725548137983,3.7808,132.26,132.21,37.9847]
[1725548138189,32.66,132.29,132.21,2.7322]
[1725548138785,0.04918498,132.26,132.24,0.04797924]
[1725548140392,0.04918498,132.26,132.25,3.7809]
[1725548141485,2.7878,132.33,132.24,32.66]
[1725548141685,6.50017331,132.33,132.27,32.66]
[1725548141883,6.50017331,132.33,132.22,5.317]
[1725548141884,2.7878,132.33,132.26,43.02745878]
[1725548142083,2.7878,132.33,132.26,39.23]
[1725548142287,6.6510582,132.33,132.26,39.23]
[1725548142486,0.05299991,132.31,132.28,0.05233417]
[1725548143994,0.05299991,132.31,132.28,39.28233417]
[1725548144588,0.05299991,132.31,132.3,3.7794]
[1725548144796,3.7775,132.37,132.28,39.23]
[1725548144993,2.7913,132.38,132.31,39.23]
[1725548145202,6.6268,132.39,132.34,3.7781]
[1725548145495,2.8497,132.39,132.31,39.23]
[1725548145797,0.0519999,132.36,132.34,0.05791683]
[1725548147700,0.0519999,132.36,132.35,3.778]
[1725548148092,0.0519999,132.36,132.34,0.05791683]
[1725548148298,0.0519999,132.36,132.34,3.83601683]
[1725548148498,0.0519999,132.36,132.34,0.05791683]
[1725548148895,0.0519999,132.36,132.35,3.778]
[1725548149303,68.76792662,132.59,132.35,39.23]
[1725548149497,5.5261,132.47,132.39,39.23]
[1725548149699,5.5261,132.47,132.37,39.23]
[1725548149901,3.7754,132.44,132.39,3.7766]
[1725548150100,7.58199058,132.44,132.37,39.23]
[1725548150402,0.05344811,132.42,132.39,0.05692492]
[1725548150602,0.05344811,132.42,132.4,3.7766]
[1725548151102,0.05344811,132.42,132.39,0.05461991]
[1725548151495,0.05344811,132.42,132.4,3.7764]
[1725548151708,0.05344811,132.42,132.39,0.05461991]
[1725548151912,0.05344811,132.42,132.39,39.28461991]
[1725548152110,0.05344811,132.42,132.41,3.7763]
[1725548152412,0.05344811,132.42,132.41,46.82770053]
[1725548152608,0.05344811,132.42,132.41,43.0063]
[1725548152916,0.05344811,132.42,132.39,39.28461991]
[1725548153414,0.05344811,132.42,132.41,3.7763]
[1725548158514,0.05344811,132.42,132.4,3.7764]
[1725548159009,3.7763,132.41,132.39,0.05461991]
[1725548159205,0.05344811,132.42,132.39,0.05461991]
[1725548159918,0.05344811,132.42,132.39,39.28461991]
[1725548160311,0.05344811,132.42,132.41,43.0063]
[1725548160713,0.05344811,132.42,132.41,3.7763]
[1725548162011,0.05344811,132.42,132.41,36.4063]
[1725548163018,0.05344811,132.42,132.41,40.24798634]
[1725548163220,3.775,132.46,132.43,3.7755]
[1725548163422,2.7955,132.47,132.43,32.63]
[1725548163920,6.64260823,132.51,132.43,32.63]
[1725548163921,6.64260823,132.51,132.44,3.7752]
[1725548164225,9.4241984,132.5,132.41,32.63]
[1725548164525,0.05193148,132.48,132.46,0.05349432]
[1725548164715,3.7746,132.47,132.46,0.05349432]
[1725548165722,32.63,132.47,132.26,95.47582578]
[1725548165915,32.63,132.47,132.36,39.23231839]
[1725548165916,36.31872271,132.47,132.36,39.23231839]
[1725548166116,3.7756,132.44,132.41,3.7762]
[1725548166319,5.5693,132.5,132.42,32.63]
[1725548166718,0.0564541,132.47,132.45,0.05015479]
[1725548166922,7.53877812,132.46,132.45,0.05015479]
[1725548167822,0.0564541,132.47,132.45,0.05015479]
[1725548168223,0.0564541,132.47,132.45,3.82505479]
[1725548169020,0.0564541,132.47,132.46,3.7749]
[1725548172521,0.0564541,132.47,132.45,0.05015479]
[1725548172923,3.7749,132.46,132.45,0.05015479]
[1725548173525,3.7749,132.46,132.38,2.3038]
[1725548173526,3.8336663,132.46,132.38,2.3038]
[1725548173826,32.63,132.45,132.38,2.3038]
[1725548174017,2.3102,132.47,132.34,32.63]
[1725548174018,3.777,132.39,132.34,32.63]
[1725548174215,32.63,132.43,132.34,32.63]
[1725548174216,32.63,132.43,132.36,3.7777]
[1725548174414,3.7766,132.4,132.38,0.05381484]
[1725548175020,3.7769,132.39,132.38,0.05381484]
[1725548175222,3.7769,132.39,132.35,3.778]
[1725548175421,36.44931224,132.43,132.34,32.63]
[1725548175824,36.44931224,132.43,132.36,3.7775]
[1725548176021,36.44931224,132.43,132.36,32.63]
[1725548176022,3.81931224,132.43,132.36,32.63]
[1725548176228,0.05310155,132.41,132.38,32.68416546]
[1725548176617,0.05310155,132.41,132.4,3.7766]
[1725548177822,0.05310155,132.41,132.4,36.4066]
[1725548178220,3.7747,132.47,132.44,3.7754]
[1725548178928,2.279,132.5,132.4,32.63]
[1725548179120,0.05632672,132.46,132.44,0.05745679]
[1725548179527,3.83132672,132.46,132.44,0.05745679]
[1725548179824,0.05632672,132.46,132.44,0.05745679]
[1725548180621,3.83142672,132.46,132.44,0.05745679]
[1725548181025,0.05632672,132.46,132.44,0.05745679]
[1725548181221,0.05632672,132.46,132.45,3.7751]
[1725548188034,32.63,132.55,132.45,3.7751]
[1725548188035,3.71856256,132.52,132.45,3.7751]
[1725548188230,3.7734,132.52,132.49,3.7738]
[1725548188432,38.81280848,132.55,132.44,32.63]
[1725548188638,3.7738,132.5,132.47,3.7745]
[1725548189136,3.82490687,132.5,132.47,3.83092005]
[1725548189438,0.05110687,132.5,132.48,3.7742]
[1725548189639,0.05110687,132.5,132.47,0.05642005]
[1725548189828,0.05110687,132.5,132.48,3.7741]
[1725548191336,3.82480687,132.5,132.47,3.83092005]
[1725548192032,0.05110687,132.5,132.47,0.05642005]
[1725548192432,0.05110687,132.5,132.49,3.774]
[1725548194935,0.05110687,132.5,132.48,3.7742]
[1725548195130,0.05110687,132.5,132.48,7.45860011]
[1725548195337,0.05110687,132.5,132.49,3.774]
[1725548196435,0.05110687,132.5,132.49,6.0137]
[1725548197037,0.05110687,132.5,132.48,3.7742]
[1725548197237,0.05110687,132.5,132.47,0.05642005]
[1725548197238,0.05110687,132.5,132.47,3.8399182]
[1725548197441,0.05110687,132.5,132.47,0.05642005]
[1725548198146,0.05110687,132.5,132.49,3.774]
[1725548198945,0.05110687,132.5,132.47,0.05642005]
[1725548198946,0.05110687,132.5,132.48,3.7741]
[1725548199141,3.82500687,132.5,132.47,0.05642005]
[1725548199347,0.05110687,132.5,132.47,0.05642005]
[1725548199744,3.774,132.49,132.47,0.05642005]
[1725548200342,3.82500687,132.5,132.47,0.05642005]
[1725548200745,3.82500687,132.5,132.47,3.83082005]
[1725548201044,3.82500687,132.5,132.47,0.05642005]
[1725548201045,0.05110687,132.5,132.47,0.05642005]
[1725548201245,0.05110687,132.5,132.48,3.774]
[1725548201446,3.82500687,132.5,132.47,0.05642005]
[1725548201850,0.05110687,132.5,132.47,0.05642005]
[1725548202042,3.7743,132.48,132.47,0.05642005]
[1725548202346,0.05110687,132.5,132.47,0.05642005]
[1725548203636,3.7741,132.49,132.47,0.05642005]
[1725548204040,0.05110687,132.5,132.47,0.05642005]
[1725548204440,0.05110687,132.5,132.47,3.83082005]
[1725548205448,3.82500687,132.5,132.47,3.83082005]
[1725548206150,0.05110687,132.5,132.48,3.7743]
[1725548206543,0.05110687,132.5,132.47,0.05642005]
[1725548207048,0.05110687,132.5,132.48,3.7743]
[1725548207248,0.05110687,132.5,132.47,0.05642005]
[1725548207548,0.05110687,132.5,132.47,3.83082005]
[1725548207751,0.05110687,132.5,132.47,0.05642005]
[1725548208345,0.05110687,132.5,132.49,3.774]
[1725548209755,0.05110687,132.5,132.49,6.206]
[1725548211340,0.05110687,132.5,132.49,3.774]
[1725548211539,0.05110687,132.5,132.47,0.05642005]
[1725548212251,3.7742,132.49,132.47,0.05642005]
[1725548213043,3.7743,132.48,132.47,0.05642005]
[1725548214947,3.81296148,132.49,132.47,0.05642005]
[1725548215148,2.47990687,132.5,132.47,0.05642005]
[1725548215347,32.62,132.49,132.41,2.3888]
[1725548215650,34.8779,132.49,132.41,2.3888]
[1725548215842,3.7748,132.47,132.43,3.7757]
[1725548216348,3.7744,132.48,132.41,2.3888]
[1725548216653,0.05605012,132.46,132.43,0.05499505]
[1725548218256,0.05605012,132.46,132.44,32.62]
[1725548218451,0.05605012,132.46,132.45,3.7751]
[1725548220154,0.05605012,132.46,132.44,3.7754]
[1725548220351,0.05605012,132.46,132.43,0.05499505]
[1725548220352,0.05605012,132.46,132.43,3.81953212]
[1725548220549,0.05605012,132.46,132.43,0.05499505]
[1725548220948,3.7751,132.45,132.43,0.05499505]
[1725548221146,0.05605012,132.46,132.43,0.05499505]
[1725548223052,0.05605012,132.46,132.44,32.62]
[1725548223451,32.62,132.56,132.44,32.62]
[1725548223745,6.13634452,132.53,132.47,32.62]
[1725548223948,2.3668,132.53,132.47,36.39407659]
[1725548224152,36.8802,132.57,132.47,36.39407659]
[1725548224453,36.8802,132.57,132.51,0.05215598]
[1725548224454,0.04854391,132.53,132.51,0.05215598]
[1725548224847,0.04854391,132.53,132.52,3.7732]
[1725548225249,0.04854391,132.53,132.51,0.05215598]
[1725548225547,3.82154391,132.53,132.51,0.05215598]
[1725548225945,0.04854391,132.53,132.51,0.05215598]
[1725548226354,0.04854391,132.53,132.51,3.82545598]
[1725548226656,0.04854391,132.53,132.51,0.05215598]
[1725548226858,0.04854391,132.53,132.52,3.7732]
[1725548227152,0.04854391,132.53,132.51,0.05215598]
[1725548228555,0.04854391,132.53,132.52,3.7732]
[1725548229457,0.04854391,132.53,132.51,0.05215598]
[1725548229756,3.7732,132.52,132.51,0.05215598]
[1725548230458,0.04854391,132.53,132.51,0.05215598]
[1725548230853,3.82144391,132.53,132.51,0.05215598]
[1725548232061,0.04854391,132.53,132.51,0.05215598]
[1725548233057,0.04854391,132.53,132.51,3.82545598]
[1725548233554,0.04854391,132.53,132.51,0.05215598]
[1725548233760,0.04854391,132.53,132.44,34.6609]
[1725548233964,3.84229873,132.54,132.44,34.6609]
[1725548234157,3.7733,132.52,132.48,3.7741]
[1725548234357,3.85022644,132.51,132.46,32.62]
[1725548234658,3.7735,132.51,132.48,3.7741]
[1725548234861,0.05790076,132.5,132.48,3.7741]
[1725548235365,0.05790076,132.5,132.47,3.82574645]
[1725548235865,0.05790076,132.5,132.48,3.7742]
[1725548236260,3.83180076,132.5,132.47,0.05124645]
[1725548236461,3.83180076,132.5,132.47,3.82574645]
[1725548237460,3.7741,132.49,132.47,0.05124645]
[1725548237667,0.05790076,132.5,132.47,0.05124645]
[1725548238061,3.83180076,132.5,132.47,3.82584645]
[1725548238461,3.7741,132.49,132.47,0.05124645]
[1725548238667,0.05790076,132.5,132.47,0.05124645]
[1725548238866,28.17930076,132.5,132.47,0.05124645]
[1725548239165,3.7747,132.47,132.44,3.7753]
[1725548239363,3.74735446,132.46,132.41,6.01931356]
[1725548239561,26.08,132.48,132.4,28.2618]
[1725548239965,3.7515077,132.47,132.42,26.08]
[1725548240160,0.04945246,132.46,132.43,0.05105962]
[1725548240557,0.04945246,132.46,132.45,3.7749]
[1725548241262,0.04945246,132.46,132.45,29.8549]
[1725548241967,26.08,132.54,132.45,26.08]
[1725548242362,3.7732,132.52,132.49,3.7739]
[1725548242558,3.85545687,132.53,132.47,29.8840961]
[1725548242864,3.85545687,132.53,132.44,4.2326]
[1725548242865,0.05631097,132.51,132.5,26.08]
[1725548243060,26.08,132.59,132.5,26.08]
[1725548243264,0.05696182,132.56,132.53,0.05244855]
[1725548243964,3.82916182,132.56,132.53,0.05244855]
[1725548244356,0.05696182,132.56,132.54,3.7725]
[1725548244962,3.82896182,132.56,132.53,0.05244855]
[1725548245163,0.05696182,132.56,132.53,0.05244855]
[1725548245463,3.7723,132.55,132.53,0.05244855]
[1725548245769,0.05696182,132.56,132.53,0.05244855]
[1725548245969,3.82916182,132.56,132.53,0.05244855]
[1725548246160,0.05696182,132.56,132.53,0.05244855]
[1725548246563,3.82906182,132.56,132.53,3.82514855]
[1725548246763,3.82906182,132.56,132.53,0.05244855]
[1725548247364,0.05696182,132.56,132.53,0.05244855]
[1725548249770,0.05696182,132.56,132.55,3.7723]
[1725548250072,4.0747,132.65,132.55,29.84094368]
[1725548250073,26.08,132.63,132.55,29.84094368]
[1725548250367,26.08,132.61,132.54,2.1474]
[1725548250561,26.08,132.61,132.48,98.79669773]
[1725548250562,26.08,132.59,132.5,26.08]
[1725548250963,26.08,132.57,132.48,102.66471712]
[1725548251161,0.05345794,132.56,132.53,0.05356355]
[1725548251360,7.67169,132.56,132.53,3.82636355]
[1725548251669,3.89959,132.56,132.53,3.82636355]
[1725548251870,7.67159,132.56,132.53,3.82636355]
[1725548252376,0.05345794,132.56,132.55,3.7723]
[1725548252669,0.05345794,132.56,132.53,26.13356355]
[1725548252879,0.05345794,132.56,132.55,3.7723]
[1725548253175,0.05345794,132.56,132.55,33.56484388]
[1725548253567,7.62221521,132.61,132.58,3.7714]
[1725548253870,3.7708,132.61,132.58,3.7714]
[1725548254070,7.61000227,132.62,132.55,29.79254388]
[1725548254272,3.83960227,132.62,132.55,26.08]
[1725548254578,4.2213,132.64,132.57,0.05067374]
[1725548254579,0.05676231,132.6,132.57,0.05067374]
[1725548254775,3.82786231,132.6,132.57,3.82227374]
[1725548255577,3.7712,132.59,132.57,0.05067374]
[1725548255967,0.05676231,132.6,132.57,0.05067374]
[1725548256779,3.82776231,132.6,132.57,0.05067374]
[1725548257986,0.05676231,132.6,132.57,3.82227374]
[1725548258482,0.05676231,132.6,132.57,0.05067374]
[1725548258981,26.13676231,132.6,132.51,26.08]
[1725548259185,26.08,132.58,132.5,26.08]
[1725548259378,3.7719,132.57,132.54,3.7726]
[1725548259577,3.7719,132.57,132.5,26.08]
[1725548259578,26.08,132.6,132.51,26.08]
[1725548259981,0.05671139,132.57,132.55,3.7723]
[1725548260386,0.05671139,132.57,132.54,0.05585826]
[1725548260586,3.76575352,132.56,132.54,3.82825826]
[1725548260981,0.05671139,132.57,132.54,0.05585826]
[1725548261183,3.88321505,132.57,132.55,3.7721]
[1725548261384,3.88321505,132.57,132.54,0.05585826]
[1725548261587,7.65501505,132.57,132.54,3.82835826]
[1725548261880,3.88321505,132.57,132.54,0.05585826]
[1725548262190,3.7723,132.56,132.54,0.05585826]
[1725548262487,3.88321505,132.57,132.54,0.05585826]
[1725548262888,0.05671139,132.57,132.54,0.05585826]
[1725548263080,0.05671139,132.57,132.55,26.08]
[1725548263490,0.05671139,132.57,132.56,3.772]
[1725548263889,0.05671139,132.57,132.54,0.05585826]
[1725548264091,0.05671139,132.57,132.55,3.7721]
[1725548264288,0.05671139,132.57,132.54,0.05585826]
[1725548265191,0.05671139,132.57,132.55,3.7723]
[1725548265383,0.05671139,132.57,132.54,0.05585826]
[1725548265582,0.05671139,132.57,132.55,26.08]
[1725548265787,0.05671139,132.57,132.55,28.1031]
[1725548266184,0.05671139,132.57,132.56,3.772]
[1725548266387,3.73726344,132.62,132.55,28.1031]
[1725548266595,4.2213,132.64,132.57,26.08]
[1725548266792,4.2213,132.64,132.59,3.7711]
[1725548267388,3.7705,132.62,132.6,0.05379424]
[1725548267585,3.8249717,132.61,132.6,0.05379424]
[1725548268497,3.7706,132.61,132.6,0.05379424]
[1725548268685,7.54540196,132.61,132.6,0.05379424]
[1725548268886,7.54540196,132.61,132.5,7.98397846]
[1725548268887,29.85480196,132.61,132.52,26.08]
[1725548269896,0.05787976,132.58,132.55,3.82797047]
[1725548270289,3.7718,132.57,132.55,0.05587047]
[1725548270596,0.05787976,132.58,132.55,0.05587047]
[1725548271093,3.7719,132.57,132.55,0.05587047]
[1725548271894,3.772,132.56,132.55,0.05587047]
[1725548272100,7.50907644,132.56,132.55,0.05587047]
[1725548273195,3.7726,132.54,132.49,28.2708]
[1725548273395,26.08,132.57,132.49,28.2708]
[1725548273601,29.82801573,132.57,132.49,28.2708]
[1725548273798,29.82801573,132.57,132.51,3.7733]
[1725548274002,3.7725,132.55,132.49,28.2708]
[1725548274300,0.05637715,132.53,132.51,3.83094418]
[1725548274501,3.7732,132.52,132.51,0.05764418]
[1725548274799,26.08,132.52,132.46,3.7747]
[1725548275000,3.7735,132.51,132.44,26.08]
[1725548275193,3.74952566,132.5,132.47,3.7744]
[1725548275803,3.80316935,132.5,132.47,3.82414919]
[1725548275996,3.82744369,132.5,132.47,3.82414919]
[1725548276198,3.84729342,132.49,132.47,3.82414919]
[1725548276403,0.05364369,132.5,132.47,0.04974919]
[1725548276895,3.84366181,132.5,132.47,0.04974919]
[1725548277098,3.7743,132.48,132.47,0.04974919]
[1725548278100,29.92932475,132.5,132.41,1.9981]
[1725548278101,3.7749,132.46,132.41,1.9981]
[1725548278306,26.08,132.47,132.41,1.9981]
[1725548278999,29.84585623,132.47,132.41,1.9981]
[1725548279206,3.83285716,132.45,132.43,0.05147871]
[1725548279906,3.7754,132.44,132.43,0.05147871]
[1725548280498,0.05755716,132.45,132.43,0.05147871]
[1725548280499,3.83295716,132.45,132.43,0.05147871]
[1725548280908,0.05755716,132.45,132.43,0.05147871]
[1725548281708,0.05755716,132.45,132.44,3.7754]
[1725548282409,2.0479,132.52,132.47,3.7743]
[1725548282703,2.0479,132.52,132.45,26.08]
[1725548282906,2.0479,132.52,132.47,3.7745]
[1725548283207,3.7738,132.5,132.47,3.7745]
[1725548283400,7.56291463,132.5,132.47,3.82685195]
[1725548283601,7.56291463,132.5,132.47,0.05235195]
[1725548283802,3.78911463,132.5,132.47,0.05235195]
[1725548284002,0.0546889,132.5,132.47,0.05235195]
[1725548284203,0.0546889,132.5,132.48,3.7741]
[1725548284406,0.0546889,132.5,132.47,0.05235195]
[1725548284597,0.0546889,132.5,132.49,3.774]
[1725548286210,0.0546889,132.5,132.49,29.854]
[1725548288102,3.74801573,132.57,132.49,26.08]
[1725548288412,26.08,132.54,132.46,2.1645]
[1725548288606,26.08,132.53,132.45,26.08]
[1725548288915,28.2672,132.53,132.45,26.08]